[Event "Junior-SM 2025"]
[Site "Uppsala, Sweden"]
[Date "2025.06.28"]
[Round "1.3"]
[White "Wernber, Hugo"]
[Black "Valcu, Lavinia"]
[Result "1/2-1/2"]
[TimeControl "90 min for 40 move + 30 min with an increment of 30 sec starting move 1"]
[WhiteTitle "FM"]
[WhiteFideId "1737511"]
[BlackFideId "1752197"]
[WhiteElo "2247"]
[BlackElo "2127"]

1. e4 {[%clk 01:30:56]} {[%emt 00:00:04]} e5 {[%clk 01:30:53]} {[%emt
00:00:07]} 2. Nf3 {[%clk 01:31:21]} {[%emt 00:00:05]} Nc6 {[%clk 01:31:10]}
{[%emt 00:00:13]} 3. Nc3 {[%clk 01:30:13]} {[%emt 00:01:38]} Nf6 {[%clk
01:30:50]} {[%emt 00:00:50]} 4. d4 {[%clk 01:24:15]} {[%emt 00:06:29]} exd4
{[%clk 01:29:27]} {[%emt 00:01:53]} 5. Nxd4 {[%clk 01:24:02]} {[%emt 00:00:42]}
Bb4 {[%clk 01:26:35]} {[%emt 00:03:22]} 6. Nxc6 {[%clk 01:23:32]} {[%emt
00:00:59]} bxc6 {[%clk 01:26:08]} {[%emt 00:00:58]} 7. Bd3 {[%clk 01:23:45]}
{[%emt 00:00:17]} d5 {[%clk 01:18:05]} {[%emt 00:08:33]} 8. exd5 {[%clk
01:24:00]} {[%emt 00:00:15]} cxd5 {[%clk 01:17:59]} {[%emt 00:00:35]} 9. O-O
{[%clk 01:23:43]} {[%emt 00:00:47]} O-O {[%clk 01:18:08]} {[%emt 00:00:22]} 10.
Bg5 {[%clk 01:23:12]} {[%emt 00:01:01]} c6 {[%clk 01:17:33]} {[%emt 00:01:05]}
11. Qf3 {[%clk 01:20:33]} {[%emt 00:03:09]} Be7 {[%clk 01:10:22]} {[%emt
00:07:41]} 12. Rfe1 {[%clk 01:16:35]} {[%emt 00:04:27]} h6 {[%clk 00:51:22]}
{[%emt 00:19:30]} 13. Bxh6 {[%clk 01:08:03]} {[%emt 00:09:03]} gxh6 {[%clk
00:44:16]} {[%emt 00:07:36]} 14. Qe3 {[%clk 01:08:08]} {[%emt 00:00:24]} Bd6
{[%clk 00:32:30]} {[%emt 00:12:17]} 15. Qxh6 {[%clk 01:08:20]} {[%emt
00:00:18]} Re8 {[%clk 00:29:25]} {[%emt 00:03:35]} 16. Rxe8+ {[%clk 01:06:45]}
{[%emt 00:02:05]} Qxe8 {[%clk 00:29:38]} {[%emt 00:00:18]} 17. Qxf6 {[%clk
01:07:05]} {[%emt 00:00:09]} Qe5 {[%clk 00:29:06]} {[%emt 00:01:02]} 18. Qh6
{[%clk 00:33:42]} {[%emt 00:33:53]} Be6 {[%clk 00:25:40]} {[%emt 00:03:56]} 19.
Bh7+ {[%clk 00:32:06]} {[%emt 00:02:06]} Kh8 {[%clk 00:26:05]} {[%emt
00:00:05]} 20. Bf5+ {[%clk 00:24:44]} {[%emt 00:07:52]} Kg8 {[%clk 00:26:26]}
{[%emt 00:00:09]} 21. Qh7+ {[%clk 00:22:17]} {[%emt 00:02:57]} Kf8 {[%clk
00:26:48]} {[%emt 00:00:08]} 22. Bxe6 {[%clk 00:22:32]} {[%emt 00:00:16]} fxe6
{[%clk 00:26:28]} {[%emt 00:00:50]} 23. Kf1 {[%clk 00:20:03]} {[%emt 00:02:58]}
Qf6 {[%clk 00:22:02]} {[%emt 00:04:57]} 24. Re1 {[%clk 00:19:46]} {[%emt
00:00:45]} Bc5 {[%clk 00:20:52]} {[%emt 00:01:41]} 25. Nd1 {[%clk 00:19:58]}
{[%emt 00:00:18]} Re8 {[%clk 00:20:22]} {[%emt 00:01:00]} 26. Qd7 {[%clk
00:15:56]} {[%emt 00:04:33]} e5 {[%clk 00:20:07]} {[%emt 00:00:45]} 27. Ne3
{[%clk 00:14:27]} {[%emt 00:01:59]} Re7 {[%clk 00:15:24]} {[%emt 00:05:13]} 28.
Qc8+ {[%clk 00:12:40]} {[%emt 00:02:16]} Re8 {[%clk 00:13:36]} {[%emt
00:02:19]} 29. Qf5 {[%clk 00:10:39]} {[%emt 00:02:31]} Kf7 {[%clk 00:12:52]}
{[%emt 00:01:14]} 30. Qh7+ {[%clk 00:09:10]} {[%emt 00:01:58]} Qg7 {[%clk
00:11:43]} {[%emt 00:01:39]} 31. Qxg7+ {[%clk 00:09:02]} {[%emt 00:00:38]} Kxg7
{[%clk 00:12:08]} {[%emt 00:00:05]} 32. g4 {[%clk 00:08:37]} {[%emt 00:00:54]}
e4 {[%clk 00:11:40]} {[%emt 00:00:59]} 33. Kg2 {[%clk 00:07:45]} {[%emt
00:01:23]} Kf6 {[%clk 00:10:17]} {[%emt 00:01:52]} 34. h4 {[%clk 00:04:56]}
{[%emt 00:03:19]} Ke5 {[%clk 00:07:20]} {[%emt 00:03:28]} 35. Kg3 {[%clk
00:04:23]} {[%emt 00:01:03]} Bxe3 {[%clk 00:06:43]} {[%emt 00:01:08]} 36. fxe3
{[%clk 00:02:06]} {[%emt 00:02:46]} Rf8 {[%clk 00:07:09]} {[%emt 00:00:04]} 37.
g5 {[%clk 00:01:58]} {[%emt 00:00:38]} c5 {[%clk 00:06:27]} {[%emt 00:01:12]}
38. Kg4 {[%clk 00:01:54]} {[%emt 00:00:34]} d4 {[%clk 00:04:37]} {[%emt
00:02:21]} 39. exd4+ {[%clk 00:01:38]} {[%emt 00:00:45]} cxd4 {[%clk 00:05:00]}
{[%emt 00:00:07]} 40. g6 {[%clk 00:01:50]} {[%emt 00:00:17]} e3 {[%clk
00:02:11]} {[%emt 00:03:19]} 41. h5 {[%clk 00:26:27]} {[%emt 00:05:53]} Rf2
{[%clk 00:28:19]} {[%emt 00:04:22]} 42. c3 {[%clk 00:22:15]} {[%emt 00:04:43]}
Ke4 {[%clk 00:21:39]} {[%emt 00:07:10]} 43. cxd4 {[%clk 00:22:30]} {[%emt
00:00:15]} Rg2 {[%clk 00:21:28]} {[%emt 00:00:41]} 44. Kh3 {[%clk 00:22:09]}
{[%emt 00:00:51]} Rg5 {[%clk 00:18:58]} {[%emt 00:03:00]} 45. Kh4 {[%clk
00:21:20]} {[%emt 00:01:18]} Rg2 {[%clk 00:19:12]} {[%emt 00:00:16]} 46. d5
{[%clk 00:10:54]} {[%emt 00:10:57]} Kf4 {[%clk 00:16:47]} {[%emt 00:02:55]} 47.
Kh3 {[%clk 00:10:39]} {[%emt 00:00:44]} Rg3+ {[%clk 00:12:37]} {[%emt
00:04:40]} 48. Kh4 {[%clk 00:10:53]} {[%emt 00:00:17]} Rg4 {[%clk 00:12:25]}
{[%emt 00:00:42]} 49. Kh3 {[%clk 00:11:12]} {[%emt 00:00:11]} Rg3+ {[%clk
00:12:50]} {[%emt 00:00:05]} 50. Kh4 {[%clk 00:01:40]} {[%emt 00:10:02]} Rg4
{[%clk 00:13:02]} {[%emt 00:00:18]} 51. Kh3 {[%clk 00:02:03]} {[%emt 00:00:07]}
1/2-1/2

[Event "Junior-SM 2025"]
[Site "Uppsala, Sweden"]
[Date "2025.06.28"]
[Round "1.4"]
[White "Sandberg, Lucas"]
[Black "Seo, Jung Hyun"]
[Result "1/2-1/2"]
[TimeControl "90 min for 40 move + 30 min with an increment of 30 sec starting move 1"]
[WhiteFideId "1773712"]
[BlackFideId "1735667"]
[WhiteElo "2243"]
[BlackElo "2153"]

1. Nc3 {[%clk 01:30:52]} {[%emt 00:00:07]} e5 {[%clk 01:30:14]} {[%emt
00:00:46]} 2. d4 {[%clk 01:30:24]} {[%emt 00:00:58]} exd4 {[%clk 01:30:26]}
{[%emt 00:00:19]} 3. Qxd4 {[%clk 01:30:48]} {[%emt 00:00:04]} Nc6 {[%clk
01:30:44]} {[%emt 00:00:13]} 4. Qd3 {[%clk 01:31:14]} {[%emt 00:00:04]} Nf6
{[%clk 01:30:35]} {[%emt 00:00:38]} 5. Bg5 {[%clk 01:31:38]} {[%emt 00:00:07]}
h6 {[%clk 01:22:53]} {[%emt 00:08:12]} 6. Qe3+ {[%clk 01:23:51]} {[%emt
00:08:16]} Qe7 {[%clk 01:20:04]} {[%emt 00:03:20]} 7. Bxf6 {[%clk 01:20:50]}
{[%emt 00:03:30]} Qxe3 {[%clk 01:19:59]} {[%emt 00:00:35]} 8. fxe3 {[%clk
01:21:14]} {[%emt 00:00:05]} gxf6 {[%clk 01:20:27]} {[%emt 00:00:02]} 9. O-O-O
{[%clk 01:19:21]} {[%emt 00:02:23]} Bd6 {[%clk 01:15:24]} {[%emt 00:05:34]} 10.
Nd5 {[%clk 01:09:50]} {[%emt 00:10:01]} Be5 {[%clk 01:13:40]} {[%emt 00:02:15]}
11. Nf3 {[%emt 00:01:35]} Kd8 {[%clk 01:13:32]} {[%emt 00:00:36]} 12. Nxe5
{[%clk 01:01:39]} {[%emt 00:07:36]} fxe5 {[%clk 01:13:47]} {[%emt 00:00:16]} 13.
e4 {[%clk 00:52:16]} {[%emt 00:09:52]} d6 {[%clk 01:11:43]} {[%emt 00:02:35]}
14. g3 {[%clk 00:49:45]} {[%emt 00:03:01]} Be6 {[%clk 01:03:09]} {[%emt
00:09:04]} 15. Bg2 {[%clk 00:45:42]} {[%emt 00:04:33]} Ne7 {[%clk 01:00:21]}
{[%emt 00:03:18]} 16. Ne3 {[%clk 00:43:59]} {[%emt 00:02:12]} Kd7 {[%clk
00:46:47]} {[%emt 00:14:05]} 17. Rhf1 {[%clk 00:40:52]} {[%emt 00:03:35]} c6
{[%clk 00:40:06]} {[%emt 00:07:13]} 18. Rf6 {[%clk 00:33:03]} {[%emt 00:08:18]}
Ng8 {[%clk 00:39:19]} {[%emt 00:01:17]} 19. Rf2 {[%clk 00:33:26]} {[%emt
00:00:08]} Ne7 {[%clk 00:36:24]} {[%emt 00:03:24]} 20. c4 {[%clk 00:26:38]}
{[%emt 00:07:19]} Kc7 {[%clk 00:33:25]} {[%emt 00:03:30]} 21. b3 {[%clk
00:25:30]} {[%emt 00:01:37]} a5 {[%clk 00:27:23]} {[%emt 00:06:32]} 22. Kb2
{[%clk 00:21:12]} {[%emt 00:04:47]} Rad8 {[%clk 00:20:48]} {[%emt 00:07:06]} 23.
a3 {[%clk 00:16:31]} {[%emt 00:05:11]} Rhf8 {[%clk 00:19:20]} {[%emt 00:01:58]}
24. Rdf1 {[%clk 00:16:21]} {[%emt 00:00:40]} Kb8 {[%clk 00:16:36]} {[%emt
00:03:15]} 25. Rd1 {[%clk 00:15:22]} {[%emt 00:01:28]} Kc7 {[%clk 00:16:43]}
{[%emt 00:00:24]} 26. Rf6 {[%clk 00:15:17]} {[%emt 00:00:33]} Ng8 {[%clk
00:17:04]} {[%emt 00:00:10]} 27. Rf2 {[%clk 00:14:34]} {[%emt 00:01:13]} Ne7
{[%clk 00:17:27]} {[%emt 00:00:07]} 28. Kc3 {[%clk 00:13:54]} {[%emt 00:01:10]}
Ra8 {[%clk 00:16:10]} {[%emt 00:01:46]} 29. Rd3 {[%clk 00:12:59]} {[%emt
00:01:26]} Rad8 {[%clk 00:11:18]} {[%emt 00:05:22]} 30. Rf6 {[%clk 00:12:57]}
{[%emt 00:00:33]} Ng8 {[%clk 00:11:37]} {[%emt 00:00:11]} 31. Rf1 {[%clk
00:13:23]} {[%emt 00:00:03]} Ne7 {[%clk 00:11:54]} {[%emt 00:00:12]} 32. Rdd1
{[%clk 00:11:33]} {[%emt 00:02:20]} Ra8 {[%clk 00:11:32]} {[%emt 00:00:54]} 33.
Rf6 {[%clk 00:11:36]} {[%emt 00:00:26]} Ng8 {[%clk 00:11:51]} {[%emt 00:00:10]}
34. Rf2 {[%clk 00:12:00]} {[%emt 00:00:06]} Ne7 {[%clk 00:12:12]} {[%emt
00:00:11]} 35. Rdf1 {[%clk 00:12:26]} {[%emt 00:00:03]} Rad8 {[%clk 00:12:03]}
{[%emt 00:00:40]} 36. Bf3 {[%clk 00:12:35]} {[%emt 00:00:20]} Bh3 {[%clk
00:12:12]} {[%emt 00:00:21]} 37. Bg2 {[%clk 00:12:41]} {[%emt 00:00:24]} Be6
{[%clk 00:12:03]} {[%emt 00:00:38]} 38. Nc2 {[%clk 00:10:54]} {[%emt 00:02:17]}
Ra8 {[%clk 00:08:25]} {[%emt 00:04:09]} 39. Ne1 {[%clk 00:11:03]} {[%emt
00:00:20]} b5 {[%clk 00:03:32]} {[%emt 00:05:24]} 40. cxb5 {[%clk 00:06:07]}
{[%emt 00:05:24]} cxb5 {[%clk 00:02:57]} {[%emt 00:01:06]} 41. Kb2 {[%clk
00:04:06]} {[%emt 00:02:31]} b4 {[%clk 00:18:59]} {[%emt 00:14:28]} 42. axb4
{[%clk 00:30:09]} {[%emt 00:04:27]} Nc6 {[%clk 00:19:10]} {[%emt 00:00:20]} 43.
Nc2 {[%clk 00:21:48]} {[%emt 00:08:51]} Rfb8 {[%clk 00:16:55]} {[%emt
00:02:44]} 44. Rc1 {[%clk 00:17:26]} {[%emt 00:04:52]} Kd7 {[%clk 00:15:29]}
{[%emt 00:01:56]} 45. Ne3 {[%clk 00:15:48]} {[%emt 00:02:07]} Nxb4 {[%clk
00:13:18]} {[%emt 00:02:42]} 46. Nd5 {[%clk 00:15:33]} {[%emt 00:00:45]} a4
{[%clk 00:11:14]} {[%emt 00:02:34]} 47. Rc4 {[%clk 00:10:52]} {[%emt 00:05:10]}
Nc6 {[%clk 00:06:40]} {[%emt 00:05:05]} 48. Nf6+ {[%clk 00:07:33]} {[%emt
00:03:48]} Kc7 {[%clk 00:06:35]} {[%emt 00:00:36]} 49. Nd5+ {[%clk 00:07:53]}
{[%emt 00:00:10]} Kd7 {[%clk 00:06:55]} {[%emt 00:00:10]} 50. Nf6+ {[%emt
00:03:16]} 1/2-1/2

[Event "Junior-SM 2025"]
[Site "Uppsala, Sweden"]
[Date "2025.06.28"]
[Round "1.5"]
[White "Ral Lustig, Melvin"]
[Black "Grahn, Vidar"]
[Result "1/2-1/2"]
[TimeControl "90 min for 40 move + 30 min with an increment of 30 sec starting move 1"]
[WhiteTitle "CM"]
[BlackTitle "FM"]
[WhiteFideId "1764195"]
[BlackFideId "1744780"]
[WhiteElo "2233"]
[BlackElo "2239"]

1. c4 {[%clk 01:30:51]} {[%emt 00:00:08]} g6 {[%clk 01:28:05]} {[%emt
00:02:56]} 2. Nf3 {[%clk 01:30:01]} {[%emt 00:01:19]} Bg7 {[%clk 01:27:27]}
{[%emt 00:01:10]} 3. Nc3 {[%clk 01:29:30]} {[%emt 00:00:59]} Nf6 {[%clk
01:26:34]} {[%emt 00:01:24]} 4. e4 {[%clk 01:27:55]} {[%emt 00:02:04]} e5
{[%clk 01:26:16]} {[%emt 00:00:48]} 5. Nxe5 {[%clk 01:15:52]} {[%emt 00:12:33]}
Qe7 {[%clk 01:26:00]} {[%emt 00:00:46]} 6. d4 {[%clk 01:14:27]} {[%emt
00:01:53]} d6 {[%clk 01:23:45]} {[%emt 00:02:48]} 7. Nf3 {[%clk 01:14:15]}
{[%emt 00:00:42]} Nxe4 {[%clk 01:23:51]} {[%emt 00:00:24]} 8. Nd5 {[%clk
01:03:54]} {[%emt 00:10:51]} Qd8 {[%clk 01:06:44]} {[%emt 00:17:36]} 9. Bd3
{[%clk 01:02:47]} {[%emt 00:01:37]} Nf6 {[%clk 01:05:06]} {[%emt 00:02:08]} 10.
Qe2+ {[%clk 01:01:15]} {[%emt 00:02:02]} Kf8 {[%clk 01:05:11]} {[%emt
00:00:25]} 11. Nc3 {[%clk 00:53:38]} {[%emt 00:08:07]} Qe7 {[%clk 00:58:29]}
{[%emt 00:07:12]} 12. Be3 {[%clk 00:50:29]} {[%emt 00:03:39]} c6 {[%clk
00:52:53]} {[%emt 00:06:06]} 13. h3 {[%clk 00:50:33]} {[%emt 00:00:26]} d5
{[%clk 00:51:14]} {[%emt 00:02:10]} 14. O-O {[%clk 00:38:25]} {[%emt 00:12:38]}
Be6 {[%clk 00:48:09]} {[%emt 00:03:35]} 15. b3 {[%clk 00:34:44]} {[%emt
00:04:10]} Nbd7 {[%clk 00:44:21]} {[%emt 00:04:19]} 16. Rfe1 {[%clk 00:31:17]}
{[%emt 00:03:56]} Re8 {[%clk 00:41:21]} {[%emt 00:03:30]} 17. Bf4 {[%clk
00:24:25]} {[%emt 00:07:21]} Qd8 {[%clk 00:39:12]} {[%emt 00:02:39]} 18. Qb2
{[%clk 00:23:59]} {[%emt 00:00:57]} Kg8 {[%clk 00:37:30]} {[%emt 00:02:12]} 19.
Re2 {[%clk 00:20:57]} {[%emt 00:03:32]} Nf8 {[%clk 00:30:30]} {[%emt 00:07:29]}
20. Rae1 {[%clk 00:20:21]} {[%emt 00:01:06]} Bc8 {[%clk 00:27:11]} {[%emt
00:03:50]} 21. Rxe8 {[%clk 00:18:10]} {[%emt 00:02:40]} Nxe8 {[%clk 00:27:32]}
{[%emt 00:00:10]} 22. Qa3 {[%clk 00:10:35]} {[%emt 00:08:06]} Ne6 {[%clk
00:26:49]} {[%emt 00:01:12]} 23. Be5 {[%clk 00:09:28]} {[%emt 00:01:37]} a6
{[%clk 00:25:30]} {[%emt 00:01:49]} 24. b4 {[%clk 00:05:58]} {[%emt 00:04:00]}
Bxe5 {[%clk 00:21:10]} {[%emt 00:04:49]} 25. Rxe5 {[%clk 00:05:26]} {[%emt
00:01:02]} Nf6 {[%clk 00:19:15]} {[%emt 00:02:26]} 26. cxd5 {[%clk 00:04:05]}
{[%emt 00:01:51]} Nf4 {[%clk 00:18:45]} {[%emt 00:00:59]} 27. Bc4 {[%clk
00:04:03]} {[%emt 00:00:33]} cxd5 {[%clk 00:18:39]} {[%emt 00:00:35]} 28. Bb3
{[%clk 00:03:30]} {[%emt 00:01:03]} Qd6 {[%clk 00:17:47]} {[%emt 00:01:21]} 29.
Re3 {[%clk 00:02:23]} {[%emt 00:01:39]} Kg7 {[%clk 00:16:23]} {[%emt 00:01:54]}
30. Ne5 {[%clk 00:01:48]} {[%emt 00:01:05]} Bf5 {[%clk 00:15:10]} {[%emt
00:01:43]} 31. Rf3 {[%clk 00:01:36]} {[%emt 00:00:42]} Ne6 {[%clk 00:14:37]}
{[%emt 00:01:02]} 32. Ne2 {[%clk 00:01:04]} {[%emt 00:01:03]} Rc8 {[%clk
00:11:09]} {[%emt 00:03:57]} 33. Re3 {[%clk 00:00:35]} {[%emt 00:00:59]} Qb6
{[%clk 00:09:08]} {[%emt 00:02:31]} 34. g4 {[%clk 00:00:43]} {[%emt 00:00:23]}
Be4 {[%clk 00:08:20]} {[%emt 00:01:17]} 35. Qa5 {[%clk 00:00:48]} {[%emt
00:00:26]} Qd6 {[%clk 00:06:21]} {[%emt 00:02:28]} 36. Nd3 {[%clk 00:00:34]}
{[%emt 00:00:45]} h5 {[%clk 00:05:42]} {[%emt 00:01:08]} 37. Nc5 {[%clk
00:00:32]} {[%emt 00:00:33]} hxg4 {[%clk 00:05:05]} {[%emt 00:01:07]} 38. Nxe4
{[%clk 00:00:59]} {[%emt 00:00:03]} dxe4 {[%clk 00:04:41]} {[%emt 00:00:53]} 39.
Qe5 {[%clk 00:01:06]} {[%emt 00:00:24]} Qxe5 {[%clk 00:04:08]} {[%emt
00:01:03]} 40. dxe5 {[%clk 00:01:35]} {[%emt 00:00:01]} Nd7 {[%clk 00:04:19]}
{[%emt 00:00:19]} 41. Bxe6 {[%clk 00:01:24]} {[%emt 00:00:40]} fxe6 {[%clk
00:04:43]} {[%emt 00:00:07]} 42. Rxe4 {[%clk 00:01:44]} {[%emt 00:00:10]} gxh3
{[%clk 00:04:48]} {[%emt 00:00:24]} 43. Nf4 {[%clk 00:02:10]} {[%emt 00:00:04]}
Rc1+ {[%clk 00:02:43]} {[%emt 00:02:35]} 1/2-1/2